[Event "Betsys MČR v online bleskovém šachu 2021"]
[Site "Chess.com"]
[Date "2021.04.17"]
[Round "6"]
[White "sachistamartin"]
[Black "Maximon2012"]
[Result "1-0"]
[WhiteElo "1432"]
[BlackElo "1078"]
[TimeControl "180+1"]
[EndTime "9:54:48 PDT"]
[Termination "Uživatel sachistamartin zvítězil matem"]

1. c4 {[%clk 0:03:00.9]} 1... e5 {[%clk 0:02:56.2]} 2. Nc3 {[%clk 0:03:00.1]}
2... Nf6 {[%clk 0:02:55.4]} 3. e4 {[%clk 0:02:59.1]} 3... Bc5 {[%clk 0:02:52.1]}
4. d3 {[%clk 0:02:57.2]} 4... d6 {[%clk 0:02:31.1]} 5. Be3 {[%clk 0:02:53.7]}
5... Bxe3 {[%clk 0:02:28.6]} 6. fxe3 {[%clk 0:02:52.8]} 6... Be6 {[%clk
0:02:29.2]} 7. Nf3 {[%clk 0:02:51.6]} 7... Nc6 {[%clk 0:02:28.9]} 8. Be2 {[%clk
0:02:46.2]} 8... Qe7 {[%clk 0:02:25.7]} 9. a3 {[%clk 0:02:45.3]} 9... O-O {[%clk
0:02:22.4]} 10. b4 {[%clk 0:02:43.6]} 10... a6 {[%clk 0:02:18.6]} 11. O-O {[%clk
0:02:42.1]} 11... Qd7 {[%clk 0:02:08]} 12. d4 {[%clk 0:02:37.7]} 12... exd4
{[%clk 0:02:06.7]} 13. exd4 {[%clk 0:02:36.9]} 13... Bg4 {[%clk 0:02:06]} 14. d5
{[%clk 0:02:32.4]} 14... Ne5 {[%clk 0:02:00.1]} 15. Nxe5 {[%clk 0:02:29.6]}
15... Bxe2 {[%clk 0:01:55.6]} 16. Nxd7 {[%clk 0:02:24.6]} 16... Bxd1 {[%clk
0:01:53.6]} 17. Nxf6+ {[%clk 0:02:23.9]} 17... gxf6 {[%clk 0:01:48.6]} 18. Raxd1
{[%clk 0:02:22.8]} 18... c6 {[%clk 0:01:42.7]} 19. Rf2 {[%clk 0:02:01.2]} 19...
Kg7 {[%clk 0:01:36.3]} 20. Rf3 {[%clk 0:01:52.9]} 20... Rfe8 {[%clk 0:01:33]}
21. Rdf1 {[%clk 0:01:51.7]} 21... cxd5 {[%clk 0:01:32.7]} 22. exd5 {[%clk
0:01:48.5]} 22... h5 {[%clk 0:01:22.4]} 23. Rxf6 {[%clk 0:01:47.7]} 23... Kh7
{[%clk 0:01:22.9]} 24. Rxf7+ {[%clk 0:01:47.1]} 24... Kg6 {[%clk 0:01:22.7]} 25.
R1f6+ {[%clk 0:01:45.4]} 25... Kg5 {[%clk 0:01:22.6]} 26. Rxd6 {[%clk
0:01:44.4]} 26... Re1+ {[%clk 0:01:19.6]} 27. Kf2 {[%clk 0:01:44]} 27... Ra1
{[%clk 0:01:17.8]} 28. Ne4+ {[%clk 0:01:43.6]} 28... Kg4 {[%clk 0:01:12.9]} 29.
h3+ {[%clk 0:01:42.5]} 29... Kh4 {[%clk 0:01:10.9]} 30. Rf4# {[%clk 0:01:41.4]}
1-0

[Event "Betsys MČR v online bleskovém šachu 2021"]
[Site "Chess.com"]
[Date "2021.04.17"]
[Round "6"]
[White "bumurubac"]
[Black "RunningPawnz88"]
[Result "0-1"]
[WhiteElo "1013"]
[BlackElo "1342"]
[TimeControl "180+1"]
[EndTime "9:55:01 PDT"]
[Termination "Uživatel RunningPawnz88 zvítězil matem"]

1. e4 {[%clk 0:03:00.9]} 1... c5 {[%clk 0:02:58.6]} 2. Bc4 {[%clk 0:02:59.6]}
2... e6 {[%clk 0:02:56.2]} 3. Nf3 {[%clk 0:02:57.1]} 3... Ne7 {[%clk 0:02:56.4]}
4. Ne5 {[%clk 0:02:56.4]} 4... Nbc6 {[%clk 0:02:54.3]} 5. f4 {[%clk 0:02:52.8]}
5... Nxe5 {[%clk 0:02:51.6]} 6. fxe5 {[%clk 0:02:52.2]} 6... d5 {[%clk 0:02:46]}
7. exd5 {[%clk 0:02:51]} 7... Nxd5 {[%clk 0:02:45.1]} 8. Bxd5 {[%clk 0:02:50.8]}
8... Qxd5 {[%clk 0:02:45]} 9. O-O {[%clk 0:02:50]} 9... Qxe5 {[%clk 0:02:39.9]}
10. Qf3 {[%clk 0:02:45.1]} 10... f6 {[%clk 0:02:27]} 11. c3 {[%clk 0:02:42.3]}
11... Bd6 {[%clk 0:02:25.3]} 12. d4 {[%clk 0:02:41.5]} 12... Qxh2+ {[%clk
0:02:24]} 13. Kf2 {[%clk 0:02:39.1]} 13... O-O {[%clk 0:02:15.9]} 14. Nd2 {[%clk
0:02:26.7]} 14... cxd4 {[%clk 0:02:07.1]} 15. cxd4 {[%clk 0:02:25.3]} 15... e5
{[%clk 0:02:02.9]} 16. Ne4 {[%clk 0:02:23.1]} 16... exd4 {[%clk 0:01:56.1]} 17.
Nxd6 {[%clk 0:02:21.8]} 17... Qxd6 {[%clk 0:01:51.7]} 18. Bf4 {[%clk 0:02:20.4]}
18... Qb6 {[%clk 0:01:46.7]} 19. Rfd1 {[%clk 0:02:19]} 19... Be6 {[%clk
0:01:41.7]} 20. Qe4 {[%clk 0:02:13]} 20... Rad8 {[%clk 0:01:34.4]} 21. Rd3
{[%clk 0:02:04.7]} 21... Qxb2+ {[%clk 0:01:27.5]} 22. Rd2 {[%clk 0:01:51.9]}
22... Qxa1 {[%clk 0:01:23.3]} 23. Qxb7 {[%clk 0:01:51.6]} 23... Qc3 {[%clk
0:01:18.9]} 24. Bc7 {[%clk 0:01:50.9]} 24... Qxd2+ {[%clk 0:01:17.6]} 25. Kg3
{[%clk 0:01:50.9]} 25... Rde8 {[%clk 0:01:12.8]} 26. Bd6 {[%clk 0:01:49.7]}
26... Qg5+ {[%clk 0:01:09.3]} 27. Kf3 {[%clk 0:01:47.8]} 27... Rf7 {[%clk
0:01:06.4]} 28. Qb3 {[%clk 0:01:43.5]} 28... Bg4+ {[%clk 0:01:05.2]} 29. Kf2
{[%clk 0:01:42]} 29... Re2+ {[%clk 0:01:01.8]} 30. Kf1 {[%clk 0:01:40.7]} 30...
Qc1+ {[%clk 0:01:00.7]} 31. Qd1 {[%clk 0:01:38]} 31... Qxd1# {[%clk 0:01:00.5]}
0-1

[Event "Betsys MČR v online bleskovém šachu 2021"]
[Site "Chess.com"]
[Date "2021.04.17"]
[Round "6"]
[White "adasmrazek"]
[Black "hvanacek"]
[Result "1-0"]
[WhiteElo "1317"]
[BlackElo "953"]
[TimeControl "180+1"]
[EndTime "9:55:12 PDT"]
[Termination "Uživatel adasmrazek zvítězil matem"]

1. d4 {[%clk 0:03:00.9]} 1... d5 {[%clk 0:02:59.1]} 2. c4 {[%clk 0:03:01]} 2...
c6 {[%clk 0:02:57.6]} 3. Nc3 {[%clk 0:03:00.6]} 3... Nf6 {[%clk 0:02:56.2]} 4.
Nf3 {[%clk 0:02:59.9]} 4... e6 {[%clk 0:02:56.1]} 5. Bg5 {[%clk 0:02:56.8]} 5...
Bb4 {[%clk 0:02:56]} 6. Rc1 {[%clk 0:02:53.5]} 6... Bxc3+ {[%clk 0:02:54.8]} 7.
bxc3 {[%clk 0:02:51.6]} 7... O-O {[%clk 0:02:54.9]} 8. e3 {[%clk 0:02:50.8]}
8... Nbd7 {[%clk 0:02:50.8]} 9. Be2 {[%clk 0:02:48.4]} 9... b5 {[%clk
0:02:45.8]} 10. cxb5 {[%clk 0:02:47.3]} 10... cxb5 {[%clk 0:02:44.4]} 11. Bxb5
{[%clk 0:02:47.8]} 11... Qb6 {[%clk 0:02:32.4]} 12. Rb1 {[%clk 0:02:44]} 12...
Ba6 {[%clk 0:02:28.7]} 13. Bxd7 {[%clk 0:02:37.8]} 13... Nxd7 {[%clk 0:02:22.3]}
14. Rxb6 {[%clk 0:02:36.5]} 14... Nxb6 {[%clk 0:02:22.8]} 15. Be7 {[%clk
0:02:34.1]} 15... Rfe8 {[%clk 0:02:21.9]} 16. Bc5 {[%clk 0:02:32.9]} 16... Rac8
{[%clk 0:02:21.5]} 17. Bxb6 {[%clk 0:02:31.5]} 17... axb6 {[%clk 0:02:21.1]} 18.
Qb3 {[%clk 0:02:31.9]} 18... Bc4 {[%clk 0:02:20.6]} 19. Qb4 {[%clk 0:02:30.4]}
19... Rb8 {[%clk 0:02:21.2]} 20. Kd2 {[%clk 0:02:28.4]} 20... b5 {[%clk
0:02:20.8]} 21. Ne5 {[%clk 0:02:27.1]} 21... Bxa2 {[%clk 0:02:16.4]} 22. Ra1
{[%clk 0:02:20.1]} 22... Bc4 {[%clk 0:02:15.3]} 23. Ra7 {[%clk 0:02:16.9]} 23...
f6 {[%clk 0:02:12.2]} 24. Nxc4 {[%clk 0:02:16.5]} 24... bxc4 {[%clk 0:02:10.6]}
25. Rb7 {[%clk 0:02:17]} 25... Rxb7 {[%clk 0:02:09.9]} 26. Qxb7 {[%clk
0:02:15.5]} 26... g5 {[%clk 0:02:09.7]} 27. g4 {[%clk 0:02:10.8]} 27... Rf8
{[%clk 0:02:07.8]} 28. Qd7 {[%clk 0:02:09.2]} 28... e5 {[%clk 0:02:04.6]} 29.
Qe7 {[%clk 0:02:05.4]} 29... exd4 {[%clk 0:02:03.9]} 30. cxd4 {[%clk 0:02:03.4]}
30... Rb8 {[%clk 0:01:57.2]} 31. Qe6+ {[%clk 0:02:00.8]} 31... Kh8 {[%clk
0:01:53.1]} 32. Qxf6+ {[%clk 0:01:59.6]} 32... Kg8 {[%clk 0:01:52.2]} 33. Qe6+
{[%clk 0:01:59.7]} 33... Kh8 {[%clk 0:01:50.9]} 34. Qe5+ {[%clk 0:01:59.9]}
34... Kg8 {[%clk 0:01:48.9]} 35. Qxb8+ {[%clk 0:02:00.4]} 35... Kf7 {[%clk
0:01:47.8]} 36. Qe5 {[%clk 0:01:59.4]} 36... Kg6 {[%clk 0:01:47.3]} 37. Qxd5
{[%clk 0:01:59.1]} 37... Kh6 {[%clk 0:01:46.6]} 38. Qxc4 {[%clk 0:01:58.9]}
38... Kg6 {[%clk 0:01:46.1]} 39. Qe6+ {[%clk 0:01:59]} 39... Kg7 {[%clk
0:01:45.6]} 40. Qe7+ {[%clk 0:01:57.5]} 40... Kh6 {[%clk 0:01:45.3]} 41. f4
{[%clk 0:01:49.9]} 41... gxf4 {[%clk 0:01:42.7]} 42. exf4 {[%clk 0:01:49.1]}
42... Kg6 {[%clk 0:01:40.8]} 43. f5+ {[%clk 0:01:45.8]} 43... Kh6 {[%clk
0:01:39.6]} 44. Qh4+ {[%clk 0:01:42.7]} 44... Kg7 {[%clk 0:01:37.7]} 45. Qg5+
{[%clk 0:01:42.5]} 45... Kh8 {[%clk 0:01:37]} 46. Qf6+ {[%clk 0:01:40.4]} 46...
Kg8 {[%clk 0:01:36.9]} 47. g5 {[%clk 0:01:35.5]} 47... h5 {[%clk 0:01:36.6]} 48.
gxh6 {[%clk 0:01:35.3]} 48... Kh7 {[%clk 0:01:35.7]} 49. Qg7# {[%clk 0:01:35.8]}
1-0

[Event "Betsys MČR v online bleskovém šachu 2021"]
[Site "Chess.com"]
[Date "2021.04.17"]
[Round "6"]
[White "PetrVelicka"]
[Black "Rubinus"]
[Result "0-1"]
[WhiteElo "2370"]
[BlackElo "2177"]
[TimeControl "180+1"]
[EndTime "9:55:13 PDT"]
[Termination "Uživatel Rubinus zvítězil po vzdání soupeře"]

1. e4 {[%clk 0:03:00.9]} 1... c5 {[%clk 0:02:59.3]} 2. Nf3 {[%clk 0:03:00.2]}
2... d6 {[%clk 0:02:58.9]} 3. d4 {[%clk 0:03:00]} 3... cxd4 {[%clk 0:02:59]} 4.
Nxd4 {[%clk 0:03:00.5]} 4... Nf6 {[%clk 0:02:59.4]} 5. Nc3 {[%clk 0:03:00.5]}
5... a6 {[%clk 0:02:59.8]} 6. Be3 {[%clk 0:03:00.6]} 6... e5 {[%clk 0:02:59.9]}
7. Nb3 {[%clk 0:02:59.7]} 7... Be7 {[%clk 0:02:59.9]} 8. Qd2 {[%clk 0:02:59.3]}
8... Qc7 {[%clk 0:02:59.8]} 9. f4 {[%clk 0:02:58.5]} 9... Be6 {[%clk 0:02:56.5]}
10. f5 {[%clk 0:02:57.7]} 10... Bc4 {[%clk 0:02:56.4]} 11. O-O-O {[%clk
0:02:53.4]} 11... Nbd7 {[%clk 0:02:53]} 12. h3 {[%clk 0:02:49.6]} 12... Nb6
{[%clk 0:02:51.6]} 13. g4 {[%clk 0:02:42.9]} 13... Bxf1 {[%clk 0:02:51]} 14.
Rhxf1 {[%clk 0:02:41.7]} 14... Nc4 {[%clk 0:02:50.4]} 15. Qd3 {[%clk 0:02:41.8]}
15... Nxe3 {[%clk 0:02:50]} 16. Qxe3 {[%clk 0:02:40.8]} 16... h6 {[%clk
0:02:45.5]} 17. Kb1 {[%clk 0:02:39.8]} 17... O-O {[%clk 0:02:41.9]} 18. Nd5
{[%clk 0:02:38.6]} 18... Nxd5 {[%clk 0:02:40.3]} 19. Rxd5 {[%clk 0:02:38.2]}
19... Rac8 {[%clk 0:02:32.6]} 20. Qd3 {[%clk 0:02:37.6]} 20... Qc4 {[%clk
0:02:28.1]} 21. Rd1 {[%clk 0:02:36.7]} 21... b6 {[%clk 0:02:20.4]} 22. Nd2
{[%clk 0:02:33.3]} 22... Qxd3 {[%clk 0:02:17.6]} 23. Rxd3 {[%clk 0:02:31.1]}
23... Rc6 {[%clk 0:02:11.6]} 24. b3 {[%clk 0:02:30.1]} 24... b5 {[%clk
0:02:10.4]} 25. Nf1 {[%clk 0:02:28.3]} 25... Rfc8 {[%clk 0:02:07.1]} 26. R1d2
{[%clk 0:02:24.3]} 26... Bg5 {[%clk 0:01:52.4]} 27. Re2 {[%clk 0:02:23.3]} 27...
Kf8 {[%clk 0:01:51.2]} 28. Nh2 {[%clk 0:02:20.1]} 28... Bf4 {[%clk 0:01:49.7]}
29. Nf3 {[%clk 0:02:19.3]} 29... Ke7 {[%clk 0:01:47.1]} 30. Kb2 {[%clk
0:02:14.1]} 30... Rc5 {[%clk 0:01:43]} 31. Nh4 {[%clk 0:02:07.3]} 31... Rd8
{[%clk 0:01:38.4]} 32. Ng2 {[%clk 0:02:06.9]} 32... g5 {[%clk 0:01:31.1]} 33.
Ne3 {[%clk 0:01:47.4]} 33... Bxe3 {[%clk 0:01:28.1]} 34. Rexe3 {[%clk
0:01:46.7]} 34... f6 {[%clk 0:01:26.5]} 35. Re2 {[%clk 0:01:38.6]} 35... d5
{[%clk 0:01:25.9]} 36. Red2 {[%clk 0:01:36.9]} 36... d4 {[%clk 0:01:25.3]} 37.
Re3 {[%clk 0:01:23.6]} 37... dxe3 {[%clk 0:01:22]} 0-1

[Event "Betsys MČR v online bleskovém šachu 2021"]
[Site "Chess.com"]
[Date "2021.04.17"]
[Round "6"]
[White "mendryxchess"]
[Black "Krtecci"]
[Result "1-0"]
[WhiteElo "1788"]
[BlackElo "2077"]
[TimeControl "180+1"]
[EndTime "9:55:14 PDT"]
[Termination "Uživatel mendryxchess zvítězil matem"]

1. e4 {[%clk 0:03:00.9]} 1... e5 {[%clk 0:02:59.7]} 2. Nf3 {[%clk 0:03:01]} 2...
Nf6 {[%clk 0:03:00.2]} 3. Bc4 {[%clk 0:03:01.1]} 3... Nxe4 {[%clk 0:02:59.6]} 4.
Nc3 {[%clk 0:03:01.3]} 4... Nxc3 {[%clk 0:02:59.4]} 5. dxc3 {[%clk 0:03:02.2]}
5... f6 {[%clk 0:02:59.9]} 6. Nh4 {[%clk 0:02:59.4]} 6... g6 {[%clk 0:02:58.1]}
7. f4 {[%clk 0:02:59.2]} 7... Qe7 {[%clk 0:02:54.4]} 8. O-O {[%clk 0:02:58]}
8... Qc5+ {[%clk 0:02:53.8]} 9. Kh1 {[%clk 0:02:53.9]} 9... Qxc4 {[%clk
0:02:54]} 10. fxe5 {[%clk 0:02:44.1]} 10... Qxh4 {[%clk 0:02:49.1]} 11. exf6
{[%clk 0:02:44.3]} 11... Bd6 {[%clk 0:02:11.7]} 12. f7+ {[%clk 0:02:36.4]} 12...
Kd8 {[%clk 0:02:02.1]} 13. h3 {[%clk 0:01:47.9]} 13... Qg3 {[%clk 0:01:41.5]}
14. Kg1 {[%clk 0:01:47.8]} 14... b6 {[%clk 0:01:04.3]} 15. Qd5 {[%clk
0:01:27.2]} 15... Nc6 {[%clk 0:00:50.8]} 16. Bg5+ {[%clk 0:01:20.8]} 16... Ne7
{[%clk 0:00:36.7]} 17. f8=Q+ {[%clk 0:01:17.6]} 17... Rxf8 {[%clk 0:00:35.4]}
18. Rxf8# {[%clk 0:01:18.5]} 1-0

[Event "Betsys MČR v online bleskovém šachu 2021"]
[Site "Chess.com"]
[Date "2021.04.17"]
[Round "6"]
[White "EliasD123"]
[Black "lockerbieQ"]
[Result "0-1"]
[WhiteElo "1303"]
[BlackElo "1738"]
[TimeControl "180+1"]
[EndTime "9:55:33 PDT"]
[Termination "Uživatel lockerbieQ zvítězil po vzdání soupeře"]

1. e4 {[%clk 0:03:00.9]} 1... c5 {[%clk 0:02:59.8]} 2. Nf3 {[%clk 0:02:59.9]}
2... d6 {[%clk 0:02:59.5]} 3. d4 {[%clk 0:03:00.1]} 3... cxd4 {[%clk 0:02:59.8]}
4. Nxd4 {[%clk 0:03:00.6]} 4... Nf6 {[%clk 0:03:00]} 5. Nc3 {[%clk 0:03:00.2]}
5... a6 {[%clk 0:03:00.3]} 6. Be3 {[%clk 0:03:00.1]} 6... e5 {[%clk 0:02:59.1]}
7. Nf3 {[%clk 0:02:59.5]} 7... Be6 {[%clk 0:02:58.2]} 8. Bd3 {[%clk 0:02:59.9]}
8... Be7 {[%clk 0:02:55.6]} 9. Qd2 {[%clk 0:02:59.8]} 9... Qc7 {[%clk
0:02:53.7]} 10. h4 {[%clk 0:02:58.9]} 10... Nbd7 {[%clk 0:02:49.5]} 11. O-O-O
{[%clk 0:02:55.5]} 11... b5 {[%clk 0:02:49.2]} 12. a3 {[%clk 0:02:52.1]} 12...
Rc8 {[%clk 0:02:47.4]} 13. Ng5 {[%clk 0:02:48]} 13... Nb6 {[%clk 0:02:29.5]} 14.
Nxe6 {[%clk 0:02:44.2]} 14... fxe6 {[%clk 0:02:29.8]} 15. Qe2 {[%clk 0:02:29.4]}
15... Nc4 {[%clk 0:02:25.1]} 16. Bxc4 {[%clk 0:02:23.4]} 16... Qxc4 {[%clk
0:01:58]} 17. Qf3 {[%clk 0:01:59.2]} 17... O-O {[%clk 0:01:53.1]} 18. g4 {[%clk
0:01:47.2]} 18... d5 {[%clk 0:01:50]} 19. Rd2 {[%clk 0:01:14.1]} 19... Nxe4
{[%clk 0:01:27.4]} 20. Qd1 {[%clk 0:01:00.5]} 20... Nxd2 {[%clk 0:01:26.4]} 21.
Qe1 {[%clk 0:01:00.6]} 21... d4 {[%clk 0:01:17.6]} 22. Qxd2 {[%clk 0:00:49.9]}
22... dxc3 {[%clk 0:01:13.7]} 23. bxc3 {[%clk 0:00:45]} 23... Bxa3+ {[%clk
0:01:11.5]} 0-1

[Event "Betsys MČR v online bleskovém šachu 2021"]
[Site "Chess.com"]
[Date "2021.04.17"]
[Round "6"]
[White "zaciname"]
[Black "krajic001"]
[Result "0-1"]
[WhiteElo "723"]
[BlackElo "1252"]
[TimeControl "180+1"]
[EndTime "9:55:35 PDT"]
[Termination "Uživatel krajic001 zvítězil po vzdání soupeře"]

1. e4 {[%clk 0:02:58.6]} 1... e5 {[%clk 0:02:58.9]} 2. Nf3 {[%clk 0:02:58.9]}
2... Nc6 {[%clk 0:02:57.5]} 3. Bc4 {[%clk 0:02:59.3]} 3... Nf6 {[%clk
0:02:55.8]} 4. d3 {[%clk 0:02:59.6]} 4... Bc5 {[%clk 0:02:53.1]} 5. h3 {[%clk
0:02:59.1]} 5... d6 {[%clk 0:02:50.2]} 6. Ng5 {[%clk 0:02:58.4]} 6... O-O {[%clk
0:02:47.8]} 7. Nc3 {[%clk 0:02:54.4]} 7... h6 {[%clk 0:02:45.8]} 8. Nf3 {[%clk
0:02:49.9]} 8... Be6 {[%clk 0:02:38.3]} 9. Bxe6 {[%clk 0:02:47.7]} 9... fxe6
{[%clk 0:02:36.8]} 10. Be3 {[%clk 0:02:48.1]} 10... Bb6 {[%clk 0:02:31.7]} 11.
O-O {[%clk 0:02:46.1]} 11... d5 {[%clk 0:02:27.2]} 12. exd5 {[%clk 0:02:41.2]}
12... exd5 {[%clk 0:02:26.1]} 13. d4 {[%clk 0:02:40.6]} 13... exd4 {[%clk
0:02:23.3]} 14. Nxd4 {[%clk 0:02:35.7]} 14... Nxd4 {[%clk 0:02:18.6]} 15. Bxd4
{[%clk 0:02:34.3]} 15... c5 {[%clk 0:02:15.2]} 16. Bxf6 {[%clk 0:02:29.6]} 16...
Qxf6 {[%clk 0:02:13.9]} 17. Qxd5+ {[%clk 0:02:27.8]} 17... Kh8 {[%clk
0:02:12.1]} 18. Qxb7 {[%clk 0:02:24.2]} 18... c4 {[%clk 0:01:57.8]} 19. Qe4
{[%clk 0:02:17.2]} 19... Rae8 {[%clk 0:01:41.2]} 20. Qg4 {[%clk 0:02:11.4]}
20... Bxf2+ {[%clk 0:01:31.7]} 21. Rxf2 {[%clk 0:02:09.2]} 21... Qxf2+ {[%clk
0:01:29.4]} 22. Kh2 {[%clk 0:02:08.4]} 22... Qf4+ {[%clk 0:01:14.8]} 23. Qxf4
{[%clk 0:01:59.6]} 23... Rxf4 {[%clk 0:01:13.8]} 24. Nd5 {[%clk 0:01:59.9]}
24... Rd4 {[%clk 0:01:10.5]} 25. Nc7 {[%clk 0:01:54.8]} 25... Re2 {[%clk
0:01:07.2]} 26. Rf1 {[%clk 0:01:46.8]} 26... Rdd2 {[%clk 0:01:05]} 27. Rg1
{[%clk 0:01:45.3]} 27... Rxc2 {[%clk 0:01:03.1]} 28. Nd5 {[%clk 0:01:44.9]}
28... Rxb2 {[%clk 0:01:00.7]} 29. Nf4 {[%clk 0:01:42.4]} 29... Rf2 {[%clk
0:00:54.1]} 30. Kg3 {[%clk 0:01:41.2]} 30... Rxa2 {[%clk 0:00:46.8]} 31. Ng6+
{[%clk 0:01:32.6]} 31... Kh7 {[%clk 0:00:45.2]} 32. Nf8+ {[%clk 0:01:31.1]}
32... Rxf8 {[%clk 0:00:43.3]} 0-1

[Event "Betsys MČR v online bleskovém šachu 2021"]
[Site "Chess.com"]
[Date "2021.04.17"]
[Round "6"]
[White "hoacin"]
[Black "masterofbuzkashi"]
[Result "1-0"]
[WhiteElo "2531"]
[BlackElo "2255"]
[TimeControl "180+1"]
[EndTime "9:55:36 PDT"]
[Termination "Uživatel hoacin zvítězil matem"]

1. e4 {[%clk 0:03:00.9]} 1... c5 {[%clk 0:02:56.1]} 2. Nf3 {[%clk 0:03:00.5]}
2... Nc6 {[%clk 0:02:56.3]} 3. d4 {[%clk 0:03:00.1]} 3... cxd4 {[%clk
0:02:57.1]} 4. Nxd4 {[%clk 0:03:00.3]} 4... Nf6 {[%clk 0:02:57.4]} 5. Nc3 {[%clk
0:02:59.9]} 5... g6 {[%clk 0:02:57.7]} 6. Nxc6 {[%clk 0:02:58.4]} 6... bxc6
{[%clk 0:02:57.2]} 7. e5 {[%clk 0:02:58]} 7... Ng8 {[%clk 0:02:57.1]} 8. Bc4
{[%clk 0:02:56.6]} 8... Bg7 {[%clk 0:02:57.2]} 9. Bf4 {[%clk 0:02:53]} 9... Qa5
{[%clk 0:02:54]} 10. O-O {[%clk 0:02:52]} 10... Nh6 {[%clk 0:02:45]} 11. Qd2
{[%clk 0:02:38]} 11... Nf5 {[%clk 0:02:40.5]} 12. Rad1 {[%clk 0:02:19.8]} 12...
O-O {[%clk 0:02:37.3]} 13. Rfe1 {[%clk 0:02:19.4]} 13... Rb8 {[%clk 0:02:35.3]}
14. Bb3 {[%clk 0:02:12.6]} 14... h5 {[%clk 0:02:23.2]} 15. Qe2 {[%clk
0:02:03.5]} 15... Qb6 {[%clk 0:02:09.7]} 16. h3 {[%clk 0:02:01]} 16... Nh6
{[%clk 0:02:07.8]} 17. Qd2 {[%clk 0:01:58]} 17... Nf5 {[%clk 0:02:01.3]} 18. Ne4
{[%clk 0:01:57.3]} 18... e6 {[%clk 0:01:47.3]} 19. Nf6+ {[%clk 0:01:50.3]} 19...
Kh8 {[%clk 0:01:44.4]} 20. c4 {[%clk 0:01:41.7]} 20... a5 {[%clk 0:01:41.1]} 21.
Bc2 {[%clk 0:01:39.1]} 21... Qxb2 {[%clk 0:01:37.8]} 22. Rb1 {[%clk 0:01:38.7]}
22... Qd4 {[%clk 0:01:18]} 23. Bxf5 {[%clk 0:01:32.2]} 23... Qxd2 {[%clk
0:01:15.6]} 24. Bxd2 {[%clk 0:01:32]} 24... Rxb1 {[%clk 0:01:10]} 25. Bxb1
{[%clk 0:01:31.9]} 25... d5 {[%clk 0:01:02.9]} 26. cxd5 {[%clk 0:01:26.7]} 26...
cxd5 {[%clk 0:01:01.3]} 27. Bd3 {[%clk 0:01:26.1]} 27... Bb7 {[%clk 0:00:56.9]}
28. Rb1 {[%clk 0:01:25.5]} 28... Bc6 {[%clk 0:00:55.7]} 29. Rb6 {[%clk
0:01:24.8]} 29... Rc8 {[%clk 0:00:50.4]} 30. Ba6 {[%clk 0:01:23.4]} 30... Rc7
{[%clk 0:00:49.5]} 31. Rb8+ {[%clk 0:01:21.4]} 31... Bf8 {[%clk 0:00:48.8]} 32.
Rxf8+ {[%clk 0:01:18.3]} 32... Kg7 {[%clk 0:00:49.1]} 33. Rg8# {[%clk
0:01:18.1]} 1-0

[Event "Betsys MČR v online bleskovém šachu 2021"]
[Site "Chess.com"]
[Date "2021.04.17"]
[Round "6"]
[White "HerjoAnpe"]
[Black "Ami2013"]
[Result "1-0"]
[WhiteElo "1237"]
[BlackElo "416"]
[TimeControl "180+1"]
[EndTime "9:55:36 PDT"]
[Termination "Uživatel HerjoAnpe zvítězil na čas"]

1. d4 {[%clk 0:03:00.1]} 1... d5 {[%clk 0:02:58.2]} 2. Nf3 {[%clk 0:03:00]} 2...
Nc6 {[%clk 0:02:55.6]} 3. e3 {[%clk 0:03:00]} 3... Bg4 {[%clk 0:02:53.7]} 4. c3
{[%clk 0:02:59.2]} 4... Nf6 {[%clk 0:02:50.5]} 5. Nbd2 {[%clk 0:02:58.2]} 5...
e6 {[%clk 0:02:46.5]} 6. Be2 {[%clk 0:02:58.2]} 6... Qd6 {[%clk 0:02:43.3]} 7.
O-O {[%clk 0:02:46.3]} 7... O-O-O {[%clk 0:02:40.7]} 8. Qc2 {[%clk 0:02:39]}
8... Bxf3 {[%clk 0:02:25.3]} 9. Nxf3 {[%clk 0:02:34.9]} 9... Ng4 {[%clk
0:02:23.6]} 10. h3 {[%clk 0:02:33.2]} 10... Nh6 {[%clk 0:02:15.1]} 11. Nd2
{[%clk 0:02:32.5]} 11... Be7 {[%clk 0:02:05]} 12. e4 {[%clk 0:02:32]} 12... Qf4
{[%clk 0:01:55]} 13. Nb3 {[%clk 0:02:18.5]} 13... Qf6 {[%clk 0:01:27.3]} 14. e5
{[%clk 0:02:17.9]} 14... Nxe5 {[%clk 0:01:19]} 15. dxe5 {[%clk 0:02:16.6]} 15...
Qxe5 {[%clk 0:01:17.3]} 16. Bf3 {[%clk 0:02:14]} 16... Bd6 {[%clk 0:01:14.6]}
17. g3 {[%clk 0:02:10.7]} 17... f5 {[%clk 0:00:54.7]} 18. Bg2 {[%clk 0:02:10.1]}
18... f4 {[%clk 0:00:51.5]} 19. gxf4 {[%clk 0:02:04.4]} 19... Qf6 {[%clk
0:00:31.7]} 20. Qd2 {[%clk 0:01:54.6]} 20... Rhf8 {[%clk 0:00:13.4]} 21. Re1
{[%clk 0:01:51.1]} 21... Bc5 {[%clk 0:00:07.8]} 22. Qe2 {[%clk 0:01:47.3]} 22...
Bb6 {[%clk 0:00:05.9]} 23. Qxe6+ {[%clk 0:01:46]} 1-0